bitfinex-derivatives/quotes_BNBF0:USTF0_20250116
["timestamp","ask_amount","ask_price","bid_price","bid_amount"]
[1737047517763,0.28031226,713.49,712.32,0.48789946]
[1737047517958,0.28031226,713.49,712.33,0.48789946]
[1737047518159,0.28031226,713.49,712.34,0.76866426]
[1737047518361,0.28031226,713.49,712.35,0.76866032]
[1737047518564,0.28031226,713.49,712.36,0.76865638]
[1737047518764,0.28031226,713.49,712.37,0.48789946]
[1737047518966,0.28031226,713.49,712.38,0.48789946]
[1737047519167,0.28031226,713.49,712.39,0.48789946]
[1737047519366,0.28031226,713.49,712.36,0.28075692]
[1737047519367,0.28031226,713.49,712.4,0.48789946]
[1737047519568,0.28031226,713.49,712.41,0.48789946]
[1737047519869,0.28031226,713.49,712.42,0.48789946]
[1737047520064,0.28031226,713.49,712.43,0.48789946]
[1737047520268,0.28031226,713.49,712.44,0.48789946]
[1737047520467,0.28031226,713.49,712.45,0.48789946]
[1737047520764,1.33174337,713.49,712.46,0.48789946]
[1737047520969,1.33174337,713.49,712.47,0.48789946]
[1737047521162,1.33174337,713.49,712.48,0.48789946]
[1737047521362,1.33174337,713.49,712.49,0.48789946]
[1737047521569,1.05143111,713.46,712.5,0.48810016]
[1737047521869,1.05143111,713.46,712.51,0.48810016]
[1737047522063,1.05143111,713.46,712.52,0.48810016]
[1737047522370,1.05143111,713.46,712.53,0.48810016]
[1737047522669,1.05143111,713.46,712.54,0.48810016]
[1737047522868,1.05143111,713.46,712.55,0.48810016]
[1737047523065,1.05143111,713.46,712.56,0.48810016]
[1737047523264,1.05143111,713.46,712.57,0.48810016]
[1737047523467,1.05143111,713.43,712.58,0.48810016]
[1737047523666,1.05143111,713.43,712.59,0.48810016]
[1737047523862,1.05143111,713.43,712.6,0.48810016]
[1737047524062,1.05143111,713.43,712.61,0.48810016]
[1737047524267,1.05143111,713.43,712.62,0.48810016]
[1737047524475,1.05143111,713.43,712.63,0.48810016]
[1737047524769,1.05143111,713.41,712.64,0.48810016]
[1737047525070,1.05143111,713.41,712.38,1.04913556]
[1737047525071,1.05143111,713.41,712.65,0.48810016]
[1737047525270,1.05143111,713.41,712.66,0.48810016]
[1737047525468,1.05143111,713.41,712.67,0.48810016]
[1737047525669,1.05143111,713.41,712.68,0.48810016]
[1737047525872,1.05143111,713.43,712.69,0.48810016]
[1737047526065,1.05143111,713.43,712.7,0.48810016]
[1737047526268,1.05143111,713.43,712.71,0.48810016]
[1737047526570,1.05143111,713.43,712.72,0.48810016]
[1737047526772,1.05143111,713.42,712.73,0.48810016]
[1737047526982,1.05143111,713.42,712.74,0.48810016]
[1737047527165,1.05143111,713.42,712.75,0.48810016]
[1737047527365,1.05143111,713.42,712.76,0.48810016]
[1737047527670,1.05143111,713.42,712.77,0.48810016]
[1737047527967,1.05143111,713.42,712.78,0.48810016]
[1737047528172,1.05143111,713.42,712.79,0.48810016]
[1737047528470,1.05143111,713.42,712.8,0.48810016]
[1737047528672,1.05143111,713.42,712.81,0.48810016]
[1737047528868,1.05143111,713.4,712.82,0.48810016]
[1737047529172,1.05143111,713.4,712.83,0.48810016]
[1737047529371,1.05143111,713.4,712.84,0.48810016]
[1737047529571,1.05143111,713.4,712.85,0.48810016]
[1737047529767,1.05143111,713.4,712.86,0.48810016]
[1737047529970,1.05143111,713.42,712.87,0.48810016]
[1737047530165,1.05143111,713.42,712.88,0.48810016]
[1737047530372,1.05143111,713.42,712.89,0.48810016]
[1737047530567,1.05143111,713.42,712.9,0.48810016]
[1737047530771,1.05143111,713.42,712.91,0.48810016]
[1737047530971,1.05143111,713.42,712.36,0.28075692]
[1737047530972,1.05143111,713.48,712.92,0.48810016]
[1737047531172,1.05143111,713.48,712.93,0.48810016]
[1737047531368,1.05143111,713.48,712.94,0.48810016]
[1737047531568,1.05143111,713.48,712.95,0.48810016]
[1737047531769,1.05143111,713.48,712.96,0.48810016]
[1737047531970,1.05143111,713.49,712.97,0.48810016]
[1737047532271,1.05143111,713.49,712.98,0.48810016]
[1737047532475,1.05143111,713.49,712.99,0.48810016]
[1737047532670,1.05143111,713.49,713.0,0.48810016]
[1737047532874,1.05143111,713.5,713.01,0.48810016]
[1737047533176,1.05143111,713.5,713.02,0.48810016]
[1737047533373,1.05143111,713.5,713.03,0.48810016]
[1737047533680,1.05143111,713.5,713.04,0.48810016]
[1737047533880,2.14667186,714.11,712.36,0.28075692]
[1737047533881,1.05143111,713.54,713.05,0.48810016]
[1737047534078,1.05143111,713.54,713.06,0.48810016]
[1737047534278,1.05143111,713.54,713.07,0.48810016]
[1737047534577,1.05143111,713.54,713.08,0.48810016]
[1737047534779,1.05143111,713.57,713.09,0.48810016]
[1737047534981,1.05143111,713.57,712.47,1.04913556]
[1737047535177,1.05143111,713.57,712.48,0.48821628]
[1737047535375,1.05143111,713.57,712.49,0.48821628]
[1737047535576,1.05143111,713.57,712.5,0.48821628]
[1737047535877,1.05143111,713.57,712.51,0.48821628]
[1737047536079,1.05143111,713.57,712.52,0.48821628]
[1737047536277,1.05143111,713.57,712.53,0.48821628]
[1737047536478,1.05143111,713.57,712.54,0.48821628]
[1737047536679,1.05143111,713.57,712.55,0.48821628]
[1737047536878,1.05143111,713.57,712.44,1.04913556]
[1737047536879,1.05143111,713.57,712.56,0.48821628]
[1737047537075,1.05143111,713.57,712.57,0.48821628]
[1737047537277,1.05143111,713.57,712.58,0.48821628]
[1737047537477,1.05143111,713.57,712.59,0.48821628]
[1737047537679,1.05143111,713.57,712.6,0.48821628]
[1737047537975,1.05143111,713.57,712.61,0.48821628]
[1737047538176,2.14667186,714.28,712.36,0.28075692]
[1737047538177,1.05143111,713.62,712.62,0.48821628]
[1737047538480,1.05143111,713.62,712.63,0.48849583]
[1737047538681,1.05143111,713.62,712.64,0.48849583]
[1737047538883,1.05143111,713.62,712.65,0.48849583]
[1737047539077,1.05143111,713.62,712.66,0.48849583]
[1737047539281,1.05143111,713.62,712.67,0.48849583]
[1737047539477,1.05143111,713.62,712.68,0.48849583]
[1737047539682,1.05143111,713.62,712.69,0.48849583]
[1737047539981,1.05143111,713.62,712.7,0.48849583]
[1737047540183,1.05143111,713.62,712.71,0.48849583]
[1737047540385,1.05143111,713.61,712.72,0.48849583]
[1737047540579,1.05143111,713.61,712.73,0.48849583]
[1737047540778,1.05143111,713.61,712.74,0.48849583]
[1737047540978,1.05143111,713.61,712.75,0.48849583]
[1737047541180,1.05143111,713.61,712.76,0.48849583]
[1737047541380,1.05143111,713.61,712.77,0.48849583]
[1737047541586,1.05143111,713.63,712.78,0.48849583]
[1737047541881,1.05143111,713.63,712.79,0.48849583]
[1737047542087,1.05143111,713.63,712.8,0.48849583]
[1737047542285,1.05143111,713.63,712.81,0.4885985]
[1737047542587,1.05143111,713.66,712.82,0.4885985]
[1737047542789,1.05143111,713.66,712.83,0.4885985]
[1737047543081,1.05143111,713.66,712.84,0.4885985]
[1737047543288,1.05143111,713.66,712.85,0.4885985]
[1737047543488,1.05143111,713.66,712.86,0.4885985]
[1737047543786,1.05143111,713.66,712.87,0.4885985]
[1737047543989,1.05143111,713.66,712.88,0.4885985]
[1737047544290,1.05143111,713.67,712.89,0.4885985]
[1737047544483,1.05143111,713.67,712.9,0.4885985]
[1737047544688,1.05143111,713.67,712.91,0.4885985]
[1737047544889,1.05143111,713.67,712.92,0.4885985]
[1737047545088,1.05143111,713.67,712.93,0.4885985]
[1737047545289,1.05143111,713.67,712.94,0.4885985]
[1737047545489,1.05143111,713.67,712.95,0.4885985]
[1737047545692,2.14667186,714.42,712.36,0.28075692]
[1737047545693,1.05143111,713.71,712.96,0.4885985]
[1737047545991,1.05143111,713.71,712.97,0.4885985]
[1737047546192,1.05143111,713.71,712.98,0.4885985]
[1737047546488,1.05143111,713.71,712.99,0.4885985]
[1737047546685,1.05143111,713.71,713.0,0.4885985]
[1737047546889,2.14667186,714.53,712.36,1.32989248]
[1737047546890,1.05143111,714.01,713.01,0.4885985]
[1737047547086,1.05143111,714.01,713.02,0.4885985]
[1737047547287,1.05143111,714.01,713.03,0.4885985]
[1737047547587,1.05143111,714.01,712.58,1.04913556]
[1737047547588,1.05143111,714.01,713.04,0.4885985]
[1737047547790,1.05143111,714.01,712.58,1.04913556]
[1737047547991,1.05143111,714.17,712.59,0.48756784]
[1737047548186,1.05143111,714.17,712.6,0.48756784]
[1737047548390,1.05143111,714.17,712.61,0.48756784]
[1737047548688,1.05143111,714.17,712.62,0.48756784]
[1737047548887,1.05143111,714.17,712.63,0.48756784]
[1737047549093,1.05143111,714.28,712.64,0.48756784]
[1737047549291,1.05143111,714.28,712.65,0.48756784]
[1737047549493,0.28000616,714.27,712.66,0.48756784]
[1737047549690,0.28000616,714.27,712.67,0.4871139]
[1737047549903,0.28000616,714.27,712.68,0.4871139]
[1737047550193,0.28000616,714.27,712.69,0.4871139]
[1737047550393,0.28000616,714.27,712.7,0.4871139]
[1737047550593,0.28000616,714.27,712.71,0.4871139]
[1737047550796,0.28000616,714.27,712.72,0.4871139]
[1737047550995,0.28000616,714.27,712.73,0.4871139]
[1737047551195,0.28000616,714.27,712.74,0.4871139]
[1737047551397,0.28000616,714.27,712.75,0.4871139]
[1737047551590,0.28000616,714.27,712.76,0.4871139]
[1737047551794,0.28000616,714.27,712.77,0.4871139]
[1737047551995,0.28000616,714.27,712.36,0.28075692]
[1737047551996,1.33143727,714.27,712.78,0.4871139]
[1737047552195,1.33143727,714.27,712.79,0.4871139]
[1737047552397,1.33143727,714.27,712.8,0.4871139]
[1737047552696,1.33143727,714.27,712.37,1.04913556]
[1737047552697,1.33143727,714.27,712.81,0.4871139]
[1737047552898,1.33143727,714.27,712.36,0.28075692]
[1737047552899,0.28000616,714.27,712.82,0.4871139]
[1737047553096,0.28000616,714.27,712.83,0.4871139]
[1737047553290,0.28000616,714.27,712.84,0.4871139]
[1737047553496,0.28000616,714.27,712.85,0.4871139]
[1737047553795,0.28000616,714.27,712.86,0.4871139]
[1737047554097,0.28000616,714.27,712.36,0.28075692]
[1737047554098,0.28000616,714.27,712.87,0.4871139]
[1737047554298,0.28000616,714.27,712.88,0.4871139]
[1737047554597,0.28000616,714.27,712.89,0.4871139]
[1737047554792,0.28000616,714.27,712.9,0.4871139]
[1737047554999,0.28000616,714.27,712.91,0.4871139]
[1737047555199,0.28000616,714.27,712.92,0.4871139]
[1737047555393,0.28000616,714.27,712.93,0.4871139]
[1737047555694,0.28000616,714.27,712.94,0.4871139]
[1737047555897,0.28000616,714.27,712.95,0.4871139]
[1737047556098,0.28000616,714.27,712.96,0.4871139]
[1737047556299,0.28000616,714.27,712.97,0.4871139]
[1737047556494,0.28000616,714.27,712.36,0.28075692]
[1737047556495,1.33143727,714.27,712.98,0.4871139]
[1737047556694,1.33143727,714.27,712.99,0.4871139]
[1737047556893,1.33143727,714.27,713.0,0.4871139]
[1737047557098,1.33143727,714.27,713.01,0.4871139]
[1737047557293,1.33143727,714.27,712.36,0.28075692]
[1737047557294,0.28000616,714.27,713.02,0.4871139]
[1737047557502,0.28000616,714.27,713.03,0.4871139]
[1737047557700,0.28000616,714.27,713.04,0.4871139]
[1737047557895,0.28000616,714.27,713.05,0.4871139]
[1737047558100,0.28000616,714.27,713.06,0.4871139]
[1737047558395,0.28000616,714.27,713.07,0.4871139]
[1737047558599,0.28000616,714.27,713.08,0.4871139]
[1737047558793,0.28000616,714.27,713.09,0.4871139]
[1737047559002,0.28000616,714.27,713.1,0.4871139]
[1737047559299,0.28000616,714.27,713.11,0.4871139]
[1737047559499,0.28000616,714.27,713.12,0.4871139]
[1737047559699,0.28000616,714.27,713.13,0.4871139]
[1737047560000,0.28000616,714.27,713.14,0.4871139]
[1737047560200,0.28000616,714.27,713.15,0.4871139]
[1737047560399,0.28000616,714.27,713.16,0.4871139]
[1737047560593,0.28000616,714.27,713.17,0.4871139]
[1737047560798,0.28000616,714.27,713.18,0.4871139]
[1737047560997,0.28000616,714.27,713.19,0.4871139]
[1737047561197,0.28000616,714.27,713.2,0.4871139]
[1737047561394,0.28000616,714.27,713.21,0.4871139]
[1737047561700,0.28000616,714.27,713.22,0.4871139]
[1737047561903,0.28000616,714.27,713.23,0.4871139]
[1737047562100,0.28000616,714.27,713.24,0.4871139]
[1737047562300,0.28000616,714.27,713.25,0.4871139]
[1737047562496,0.28000616,714.27,713.26,0.4871139]
[1737047562696,1.05143111,714.21,713.27,0.4871139]
[1737047562902,1.05143111,714.21,712.46,1.04913556]
[1737047563102,1.05143111,714.21,712.48,0.28070963]
[1737047563302,1.05143111,714.21,712.49,0.7432594]
[1737047563496,1.05143111,714.21,712.51,0.28069781]
[1737047563698,1.05143111,714.19,712.52,0.7432594]
[1737047564000,1.05143111,714.19,712.54,0.28068599]
[1737047564301,1.05143111,714.19,712.55,0.74326099]
[1737047564502,1.05143111,714.19,712.57,0.28067417]
[1737047564703,1.05143111,714.18,712.58,0.48561926]
[1737047564904,1.05143111,714.18,712.59,0.74315358]
[1737047565204,1.05143111,714.18,712.6,0.76618912]
[1737047565503,1.05143111,714.18,712.61,0.76618518]
[1737047565697,1.05143111,714.18,712.62,1.02380822]
[1737047565897,1.05143111,714.22,712.63,0.48552676]
[1737047566101,1.05143111,714.22,712.64,0.76617336]
[1737047566303,1.05143111,714.22,712.65,1.02379641]
[1737047566501,1.05143111,714.22,712.66,0.48552676]
[1737047566700,1.05143111,714.22,712.67,1.02378853]
[1737047566897,1.05143111,714.23,712.68,0.74315374]
[1737047567098,1.05143111,714.23,712.69,1.00078115]
[1737047567398,1.05143111,714.23,712.7,0.74315364]
[1737047567603,1.05143111,714.23,712.71,0.74315364]
[1737047567799,1.05143111,714.23,712.72,0.48552676]
[1737047568003,1.05143111,714.23,712.69,0.25762751]
[1737047568004,0.28000616,714.27,712.73,0.76613793]
[1737047568303,0.28000616,714.27,712.74,0.76613399]
[1737047568503,0.28000616,714.27,712.75,0.76613005]
[1737047568705,0.28000616,714.27,712.76,0.76612612]
[1737047568905,0.28000616,714.27,712.77,0.76612218]
[1737047569108,0.28000616,714.27,712.78,0.76611824]
[1737047569304,0.28000616,714.27,712.79,0.48552676]
[1737047569501,0.28000616,714.27,712.8,0.48552676]
[1737047569700,0.28000616,714.27,712.81,0.48552676]
[1737047569899,0.28000616,714.27,712.82,0.48552676]
[1737047570099,0.28000616,714.27,712.83,0.48552676]
[1737047570304,0.28000616,714.27,712.84,0.48552676]
[1737047570504,0.28000616,714.27,712.78,0.28059148]
[1737047570505,1.33143727,714.27,712.85,0.48552676]
[1737047570698,1.33143727,714.27,712.86,0.48552676]
[1737047570905,1.33143727,714.27,712.87,0.48552676]
[1737047571102,1.33143727,714.27,712.88,0.48552676]
[1737047571306,1.33143727,714.27,712.89,0.48552676]
[1737047571506,1.33143727,714.27,712.9,0.48552676]
[1737047571710,1.05143111,714.25,712.91,0.48552676]
[1737047571905,1.05143111,714.25,712.92,0.48552676]
[1737047572106,1.05143111,714.25,712.93,0.48552676]
[1737047572302,0.28001792,714.24,712.94,0.48552676]
[1737047572501,0.28001792,714.24,712.95,0.48552676]
[1737047572805,1.05143111,714.22,712.96,0.48552676]
[1737047573107,1.05143111,714.22,712.97,0.48552676]
[1737047573308,1.05143111,714.22,712.98,0.48552676]
[1737047573509,1.05143111,714.21,712.99,0.48552676]
[1737047573709,1.05143111,714.21,713.0,0.48552676]
[1737047573908,1.05143111,714.21,713.01,0.48552676]
[1737047574108,1.05143111,714.21,713.02,0.48552676]
[1737047574308,1.05143111,714.21,713.03,0.48552676]
[1737047574509,1.05143111,714.2,713.04,0.48552676]
[1737047574703,1.05143111,714.2,713.05,0.48552676]
[1737047574901,1.05143111,714.2,713.06,0.48552676]
[1737047575104,1.05143111,714.2,713.07,0.48552676]
[1737047575305,1.05143111,714.2,713.08,0.48552676]
[1737047575511,1.05143111,714.18,713.09,0.48552676]
[1737047575711,1.05143111,714.18,713.1,0.48552676]
[1737047576013,1.05143111,714.18,713.11,0.48552676]
[1737047576310,1.05143111,714.13,713.12,0.48552676]
[1737047576510,1.05143111,714.13,713.13,0.48552676]
[1737047576712,1.05143111,714.13,713.14,0.48552676]
[1737047576910,1.05143111,714.13,713.15,0.48552676]
[1737047577111,1.05143111,714.13,713.16,0.48552676]
[1737047577313,1.05143111,714.13,713.17,0.48552676]
[1737047577514,1.05143111,714.05,713.18,0.48552676]
[1737047577715,1.05143111,714.05,713.19,0.48552676]
[1737047577909,1.05143111,714.05,713.2,0.48552676]
[1737047578214,1.05143111,714.05,713.21,0.48552676]
[1737047578414,1.05143111,714.05,713.22,0.48552676]
[1737047578616,1.05143111,714.0,713.23,0.48552676]
[1737047578811,1.05143111,714.0,713.24,0.48552676]
[1737047579114,1.05143111,714.0,713.25,0.48552676]
[1737047579307,1.05143111,714.0,713.26,0.48552676]
[1737047579512,1.05143111,714.0,713.27,0.48552676]
[1737047579815,1.05143111,714.03,713.28,0.48552676]
[1737047580009,1.05143111,714.03,713.29,0.48554273]
[1737047580209,1.05143111,714.03,712.78,0.28059148]
[1737047580514,1.05143111,714.03,712.79,0.48553093]
[1737047580718,1.05143111,714.03,712.8,0.48553093]
[1737047580915,1.05143111,714.03,712.81,0.48553093]
[1737047581116,0.28001792,714.24,712.78,0.28059148]
[1737047581117,1.05143111,713.92,712.82,0.48553093]
[1737047581317,1.05143111,713.92,712.83,0.48553093]
[1737047581512,1.05143111,713.92,712.84,0.48553093]
[1737047581818,1.05143111,713.92,712.85,0.48553093]
[1737047582024,1.05143111,713.88,712.86,0.48553093]
[1737047582224,1.05143111,713.88,712.87,0.48553093]
[1737047582423,1.05143111,713.88,712.88,0.48553093]
[1737047582620,1.05143111,713.88,712.89,0.48553093]
[1737047582816,1.05143111,713.88,712.9,0.48553093]
[1737047583025,0.28001792,714.24,712.91,0.48553093]
[1737047583026,1.05143111,713.92,712.91,0.48553093]
[1737047583222,1.05143111,713.92,712.92,0.48553093]
[1737047583423,1.05143111,713.92,712.93,0.48553093]
[1737047583623,1.05143111,713.92,712.94,0.48553093]
[1737047583922,1.05143111,713.92,712.95,0.48553093]
[1737047584122,0.28001792,714.24,712.96,0.48553093]
[1737047584123,1.05143111,713.78,712.96,0.48553093]
[1737047584423,1.05143111,713.78,712.97,0.48553093]
[1737047584619,1.05143111,713.78,712.98,0.48553093]
[1737047584822,1.05143111,713.78,712.99,0.48553093]
[1737047585017,1.05143111,713.71,713.0,0.4864513]
[1737047585222,1.05143111,713.71,713.01,0.4864513]
[1737047585527,1.05143111,713.71,712.78,0.28059148]
[1737047585528,1.05143111,713.71,713.02,0.4864513]
[1737047585725,1.05143111,713.71,712.78,0.28059148]
[1737047585927,1.05143111,713.66,712.79,0.48667167]
[1737047586118,1.05143111,713.66,712.8,0.48667167]
[1737047586326,1.05143111,713.66,712.81,0.48667167]
[1737047586625,1.05143111,713.66,712.82,0.48667167]
[1737047586924,1.05143111,713.66,712.83,0.48667167]
[1737047587126,1.98472608,714.23,712.78,0.28059148]
[1737047587127,1.05143111,713.65,712.84,0.48667167]
[1737047587318,1.05143111,713.65,712.85,0.48667167]
[1737047587522,1.05143111,713.65,712.86,0.48667167]
[1737047587719,1.05143111,713.65,712.87,0.48667167]
[1737047587920,1.05143111,713.65,712.88,0.48667167]
[1737047588125,1.05143111,713.65,712.89,0.48667167]
[1737047588323,1.05143111,713.65,712.78,0.28059148]
[1737047588324,1.05143111,713.76,712.9,0.48667167]
[1737047588625,1.05143111,713.76,712.91,0.48667167]
[1737047588825,1.05143111,713.76,712.92,0.48667167]
[1737047589026,1.05143111,713.76,712.93,0.48667167]
[1737047589229,1.05143111,713.79,712.94,0.48667167]
[1737047589425,1.05143111,713.79,712.95,0.48667167]
[1737047589625,1.05143111,713.79,712.96,0.48667167]
[1737047589921,1.05143111,713.83,712.97,0.48667167]
[1737047590229,1.05143111,713.83,712.98,0.48667167]
[1737047590426,1.05143111,713.83,712.99,0.48667167]
[1737047590627,1.05143111,713.83,713.0,0.48667167]
[1737047590823,1.05143111,713.83,713.01,0.48667167]
[1737047591128,1.05143111,713.85,712.78,0.28059148]
[1737047591328,1.05143111,713.85,712.79,0.48695738]
[1737047591523,1.05143111,713.85,712.8,0.48695738]
[1737047591725,1.05143111,714.14,712.78,0.28059148]
[1737047591726,1.05143111,713.86,712.81,0.48695738]
[1737047592027,1.05143111,713.86,712.82,0.48695738]
[1737047592227,1.05143111,713.86,712.83,0.48695738]
[1737047592429,1.05143111,713.86,712.84,0.48695738]
[1737047592728,1.05143111,713.86,712.85,0.48695738]
[1737047592929,1.05143111,713.89,712.86,0.48695738]
[1737047593128,1.05143111,713.89,712.87,0.48695738]
[1737047593331,1.05143111,713.89,712.88,0.48695738]
[1737047593528,1.05143111,713.89,712.89,0.48695738]
[1737047593725,1.05143111,713.89,712.9,0.48695738]
[1737047593926,1.05143111,713.92,712.91,0.48695738]
[1737047594129,1.05143111,713.92,712.92,0.48695738]
[1737047594329,1.05143111,713.92,712.93,0.48695738]
[1737047594529,1.05143111,713.92,712.94,0.4868698]
[1737047594829,1.05143111,713.92,712.95,0.4868698]
[1737047595030,1.05143111,714.0,712.96,0.4868698]
[1737047595229,1.05143111,714.0,712.97,0.4868698]
[1737047595430,1.05143111,714.0,712.98,0.4868698]
[1737047595630,1.05143111,714.0,712.99,0.4868698]
[1737047595925,1.05143111,714.0,713.0,0.4868698]
[1737047596125,1.05143111,714.0,713.01,0.4868698]
[1737047596330,1.05143111,713.99,713.02,0.4868698]
[1737047596525,1.05143111,713.99,713.03,0.4868698]
[1737047596733,1.05143111,713.99,713.04,0.4868698]
[1737047597028,1.05143111,713.99,713.05,0.4868698]
[1737047597225,1.05143111,713.83,713.06,0.4868698]
[1737047597530,1.05143111,713.83,713.07,0.4868698]
[1737047597729,1.05143111,713.83,713.08,0.4868698]
[1737047597925,1.05143111,713.83,713.09,0.4868698]
[1737047598129,1.05143111,713.83,713.1,0.4868698]
[1737047598330,1.05143111,713.83,713.11,0.4868698]
[1737047598525,1.05143111,713.83,712.78,0.28059148]
[1737047598725,1.05143111,713.83,712.79,0.48718533]
[1737047598931,1.05143111,713.83,712.8,0.48718533]
[1737047599225,1.05143111,713.83,712.81,0.48718533]
[1737047599432,1.05143111,713.83,712.82,0.48718533]
[1737047599631,1.05143111,713.83,712.83,0.48718533]
[1737047599833,1.05143111,713.83,712.84,0.48718533]
[1737047600028,1.05143111,713.83,712.85,0.48718533]
[1737047600225,1.05143111,713.83,712.86,0.48718533]
[1737047600426,1.05143111,713.86,712.87,0.48718533]
[1737047600633,1.05143111,713.86,712.88,0.48718533]
[1737047600833,1.05143111,713.86,712.89,0.48718533]
[1737047601132,1.05143111,713.86,712.9,0.48718533]
[1737047601335,1.05143111,713.86,712.91,0.48718533]
[1737047601635,1.05143111,713.87,712.92,0.48718533]
[1737047601833,1.05143111,713.87,712.93,0.48718533]
[1737047602034,1.05143111,713.87,712.94,0.48718533]
[1737047602235,1.05143111,713.87,712.95,0.48718533]
[1737047602439,1.05143111,713.87,712.96,0.48718533]
[1737047602627,1.05143111,713.87,712.97,0.48718533]
[1737047602833,1.05143111,713.86,712.98,0.48718533]
[1737047603032,1.05143111,713.86,712.99,0.48718533]
[1737047603227,1.05143111,713.86,713.0,0.48718533]
[1737047603435,1.05143111,713.86,713.01,0.48718533]
[1737047603635,1.05143111,713.86,712.78,0.28059148]
[1737047603636,1.05143111,713.85,713.02,0.48718533]
[1737047603935,1.05143111,713.85,713.03,0.48718533]
[1737047604234,1.05143111,713.85,713.04,0.48718533]
[1737047604437,1.05143111,713.85,713.05,0.48718533]
[1737047604735,1.05143111,713.85,713.06,0.48718533]
[1737047604937,1.85511604,714.65,712.78,0.28059148]
[1737047604938,1.05143111,713.82,713.07,0.48718533]
[1737047605136,1.05143111,713.82,713.08,0.48718533]
[1737047605337,1.05143111,713.82,713.09,0.48718533]
[1737047605537,1.05143111,713.82,713.1,0.48718533]
[1737047605837,1.05143111,713.82,713.11,0.48718533]
[1737047606034,1.05143111,713.81,712.78,0.28059148]
[1737047606245,1.05143111,713.81,712.79,0.48747641]
[1737047606536,1.05143111,713.81,712.8,0.48747641]
[1737047606734,1.05143111,713.81,712.81,0.48747641]
[1737047606943,1.05143111,713.81,712.82,0.48747641]
[1737047607239,1.05143111,713.81,712.83,0.48747641]
[1737047607440,1.05143111,713.81,712.78,0.28059148]
[1737047607441,1.05143111,713.81,712.84,0.48747641]
[1737047607738,1.05143111,713.81,712.85,0.48747641]
[1737047607943,1.05143111,713.81,712.86,0.48747641]
[1737047608143,1.05143111,713.81,712.87,0.48747641]
[1737047608340,1.05143111,713.79,712.88,0.48747641]
[1737047608638,1.05143111,713.79,712.78,0.28059148]
[1737047608639,1.05143111,713.79,712.89,0.48747641]
[1737047608836,1.05143111,713.79,712.9,0.48747641]
[1737047609044,1.05143111,713.79,712.91,0.48747641]
[1737047609241,1.05143111,713.85,712.92,0.48747641]
[1737047609436,1.05143111,713.85,712.93,0.48747641]
[1737047609739,1.05143111,713.85,712.94,0.48743144]
[1737047609941,1.05143111,713.85,712.95,0.48743144]
[1737047610141,1.05143111,713.85,712.96,0.48743144]
[1737047610341,1.05143111,713.85,712.97,0.48743144]
[1737047610538,1.05143111,713.85,712.98,0.48743144]
[1737047610744,2.14667186,714.58,712.78,0.28059148]
[1737047610745,1.05143111,713.82,712.99,0.48743144]
[1737047610945,1.05143111,713.82,713.0,0.48743144]
[1737047611143,1.05143111,713.82,713.01,0.48743144]
[1737047611347,1.05143111,713.82,713.02,0.48743144]
[1737047611539,1.05143111,713.82,712.78,0.28059148]
[1737047611540,1.05143111,713.82,713.03,0.48743144]
[1737047611747,1.05143111,714.08,712.78,0.28059148]
[1737047611748,1.05143111,713.8,713.04,0.48743144]
[1737047611944,1.05143111,713.8,713.05,0.48743144]
[1737047612146,1.05143111,713.8,712.78,0.28059148]
[1737047612147,1.05143111,713.8,713.06,0.48743144]
[1737047612446,1.05143111,713.8,713.07,0.48743144]
[1737047612748,1.05143111,714.16,712.78,0.28059148]
[1737047612749,1.05143111,713.78,713.08,0.48733868]
[1737047612947,1.05143111,713.78,712.78,0.28059148]
[1737047613147,1.05143111,713.78,712.79,0.48736467]
[1737047613347,1.05143111,713.78,712.8,0.48736467]
[1737047613548,1.05143111,713.78,712.81,0.48736467]
[1737047613749,1.05143111,713.8,712.82,0.48736467]
[1737047613946,1.05143111,713.8,712.83,0.48736467]
[1737047614141,1.05143111,713.8,712.84,0.48736467]
[1737047614340,1.05143111,713.8,712.85,0.48736467]
[1737047614547,1.05143111,713.8,712.86,0.48736467]
[1737047614746,1.05143111,713.8,712.87,0.48736467]
[1737047614945,1.05143111,713.8,712.88,0.48736467]
[1737047615150,1.05143111,713.8,712.89,0.48736467]
[1737047615345,1.05143111,713.8,712.9,0.48736467]
[1737047615546,1.05143111,713.8,712.91,0.48736467]
[1737047615751,1.05143111,713.8,712.78,0.28059148]
[1737047615752,1.05143111,713.8,712.92,0.48736467]
[1737047615951,1.05143111,713.8,712.93,0.48736467]
[1737047616254,1.05143111,713.76,712.94,0.48736467]
[1737047616551,1.05143111,713.76,712.95,0.48736467]
[1737047616757,1.05143111,713.76,712.96,0.48736467]
[1737047616955,1.05143111,713.76,712.78,0.28059148]
[1737047616956,1.05143111,713.74,712.97,0.48736467]
[1737047617156,1.05143111,713.74,712.98,0.48736467]
[1737047617353,1.05143111,713.74,712.99,0.48736467]
[1737047617652,1.05143111,713.74,713.0,0.48736467]
[1737047617848,1.05143111,713.74,713.01,0.48736467]
[1737047618053,1.05143111,713.74,713.02,0.48736467]
[1737047618249,1.05143111,713.87,713.03,0.48736467]
[1737047618454,1.05143111,713.87,713.04,0.48736467]
[1737047618652,1.05143111,713.87,713.05,0.48736467]
[1737047618848,1.05143111,713.87,713.06,0.48736467]
[1737047619056,1.05143111,713.87,713.07,0.48736467]
[1737047619254,1.05143111,713.87,713.08,0.48736467]